[Event "Mitropa Cup Women 2019"]
[Site "Radenci"]
[Date "2019.05.30"]
[Round "4.9"]
[White "Havanecz, Bianka"]
[Black "Medic, Mirjana"]
[Result "1/2-1/2"]
[ECO "A90"]
[WhiteElo "2279"]
[BlackElo "2253"]
[Annotator "ChessBase"]
[PlyCount "176"]
[EventDate "2019.05.27"]
[EventType "team-tourn"]
[EventCountry "SLO"]
[SourceTitle "playchess.com"]
[Source "ChessBase"]
[SourceQuality "1"]
[WhiteTeam "Hungary"]
[BlackTeam "Croatia"]
[WhiteTeamCountry "HUN"]
[BlackTeamCountry "CRO"]
[TimeControl "40/5400+30:1800+30"]

1. d4 {[%emt 0:00:00]} e6 {[%emt 0:00:00]} 2. c4 {[%emt 0:00:00]} f5 {[%emt 0:00:00]} 3. g3 {[%emt 0:00:00]} Nf6 {[%emt 0:00:00]} 4. Bg2 {[%emt 0:00:00]} d5 {[%emt 0:00:26]} 5. Nf3 {[%emt 0:00:00]} c6 {[%emt 0:00:28]} 6. O-O {[%emt 0:00:03]} Bd6 {[%emt 0:00:03]} 7. Nc3 {[%emt 0:00:08]} O-O {[%emt 0:00:46]} 8. Qc2 {[%emt 0:00:03]} Qe7 {[%emt 0:04:50]} 9. Rb1 {[%emt 0:00:57]} Nbd7 {[%emt 0:05:25]} 10. Bf4 {[%emt 0:13:17]} Ne4 {[%emt 0:12:00]} 11. c5 {[%emt 0:11:38]} Bb8 {[%emt 0:06:39]} 12. Bxb8 {[%emt 0:03:30]} Rxb8 {[%emt 0:00:07]} 13. b4 {[%emt 0:00:24]} e5 {[%emt 0:23:47]} 14. e3 {[%emt 0:01:18]} Nxc3 {[%emt 0:13:45]} 15. Qxc3 {[%emt 0:00:05]} e4 {[%emt 0:00:08]} 16. Nd2 {[%emt 0:00:18]} a6 {[%emt 0:00:25]} 17. a4 {[%emt 0:00:14]} Nf6 {[%emt 0:00:57]} 18. b5 {[%emt 0:00:09]} axb5 {[%emt 0:00:23]} 19. axb5 {[%emt 0:00:06]} Bd7 {[%emt 0:01:07]} 20. bxc6 {[%emt 0:01:12]} bxc6 {[%emt 0:01:14]} 21. Rb6 {[%emt 0:00:52]} Ra8 {[%emt 0:00:42]} 22. Ra1 {[%emt 0:05:19]} Rfc8 {[%emt 0:02:56]} 23. Nb3 {[%emt 0:01:14]} Qe8 {[%emt 0:01:54]} 24. Rxa8 {[%emt 0:12:26]} Rxa8 {[%emt 0:00:02]} 25. Na5 {[%emt 0:00:06]} h6 {[%emt 0:01:15]} 26. Bf1 {[%emt 0:01:57]} Kh7 {[%emt 0:01:56]} 27. Be2 {[%emt 0:04:25]} Ra7 {[%emt 0:02:38]} 28. Qb4 {[%emt 0:00:31]} Ra8 {[%emt 0:00:58]} 29. Rb7 {[%emt 0:05:30]} f4 {[%emt 0:03:49]} 30. exf4 {[%emt 0:04:11]} Bg4 {[%emt 0:00:10]} 31. Bxg4 {[%emt 0:06:53]} Nxg4 {[%emt 0:00:02]} 32. Qe1 {[%emt 0:03:16]} Ra6 {[%emt 0:03:13]} 33. h3 {[%emt 0:04:46]} Nf6 {[%emt 0:00:12]} 34. Rb2 {[%emt 0:02:11]} Qa8 {[%emt 0:01:19]} 35. Nb3 {[%emt 0:00:33]} Ra4 {[%emt 0:02:07]} 36. Qd2 {[%emt 0:07:15]} Qa6 {[%emt 0:01:12]} 37. Kg2 {[%emt 0:04:28]} Qc4 {[%emt 0:03:08]} 38. f5 {[%emt 0:03:48]} Ra3 {[%emt 0:01:19]} 39. Na5 {[%emt 0:03:13]} Qa4 {[%emt 0:01:00]} 40. Nb7 {[%emt 0:00:00]} Rd3 {[%emt 0:00:00]} 41. Ra2 {[%emt 0:15:45]} Qxd4 {[%emt 0:01:58]} 42. Qb2 {[%emt 0:00:05]} Rc3 {[%emt 0:12:44]} 43. Nd6 {[%emt 0:05:53]} Qxc5 {[%emt 0:10:40]} 44. Nf7 {[%emt 0:00:07]} Ng8 {[%emt 0:00:55]} 45. g4 {[%emt 0:02:22]} d4 {[%emt 0:00:25]} 46. Qb7 {[%emt 0:02:56]} Qb5 {[%emt 0:05:31]} 47. Qxb5 {[%emt 0:02:44]} cxb5 {[%emt 0:00:01]} 48. Nd6 {[%emt 0:00:11]} d3 {[%emt 0:01:45]} 49. Nxe4 {[%emt 0:00:39]} Rc4 {[%emt 0:01:08]} 50. Kf3 {[%emt 0:00:23]} Nf6 {[%emt 0:01:04]} 51. Nxf6+ {[%emt 0:00:44]} gxf6 {[%emt 0:00:02]} 52. Ke3 {[%emt 0:00:28]} Rb4 {[%emt 0:01:36]} 53. Rd2 {[%emt 0:01:42]} h5 {[%emt 0:03:22]} 54. f4 {[%emt 0:00:22]} hxg4 {[%emt 0:00:05]} 55. hxg4 {[%emt 0:00:03]} Rb1 {[%emt 0:00:27]} 56. g5 {[%emt 0:00:39]} fxg5 {[%emt 0:01:42]} 57. fxg5 {[%emt 0:00:01]} Kg7 {[%emt 0:00:18]} 58. Rxd3 {[%emt 0:00:12]} Re1+ {[%emt 0:00:45]} 59. Kf4 {[%emt 0:00:33]} Rf1+ {[%emt 0:00:26]} 60. Rf3 {[%emt 0:00:59]} Rg1 {[%emt 0:00:22]} 61. Rc3 {[%emt 0:03:38]} Rf1+ {[%emt 0:00:07]} 62. Ke5 {[%emt 0:00:22]} Re1+ {[%emt 0:00:25]} 63. Kd4 {[%emt 0:00:40]} Rd1+ {[%emt 0:00:40]} 64. Ke3 {[%emt 0:01:34]} Re1+ {[%emt 0:00:10]} 65. Kf4 {[%emt 0:00:19]} Rf1+ {[%emt 0:00:06]} 66. Rf3 {[%emt 0:00:04]} Rb1 {[%emt 0:01:00]} 67. Ke4 {[%emt 0:00:49]} Rg1 {[%emt 0:00:15]} 68. f6+ {[%emt 0:00:16]} Kf7 {[%emt 0:00:11]} 69. Rf5 {[%emt 0:00:17]} b4 {[%emt 0:00:59]} 70. Kd3 {[%emt 0:00:50]} Rg3+ {[%emt 0:01:49]} 71. Kc2 {[%emt 0:00:08]} Rc3+ {[%emt 0:00:38]} 72. Kb2 {[%emt 0:00:09]} Rg3 {[%emt 0:00:06]} 73. Rc5 {[%emt 0:02:11]} Kg6 {[%emt 0:00:21]} 74. Rb5 {[%emt 0:00:13]} Rf3 {[%emt 0:00:58]} 75. Kc2 {[%emt 0:00:31]} Rg3 {[%emt 0:00:17]} 76. Kd2 {[%emt 0:00:20]} b3 {[%emt 0:00:06]} 77. Kc1 {[%emt 0:00:36]} Rg2 {[%emt 0:00:52]} 78. Kb1 {[%emt 0:00:10]} Rf2 {[%emt 0:00:59]} 79. Kc1 {[%emt 0:01:56]} Rc2+ {[%emt 0:00:19]} 80. Kb1 {[%emt 0:00:04]} Rf2 {[%emt 0:00:05]} 81. Rc5 {[%emt 0:00:57]} Rg2 {[%emt 0:00:15]} 82. Rd5 {[%emt 0:01:01]} Rf2 {[%emt 0:00:13]} 83. Rb5 {[%emt 0:00:23]} Rg2 {[%emt 0:00:07]} 84. Rxb3 {[%emt 0:00:36]} Rxg5 {[%emt 0:00:07]} 85. Rf3 {[%emt 0:00:08]} Kf7 {[%emt 0:00:07]} 86. Kc2 {[%emt 0:00:05]} Rg6 {[%emt 0:00:06]} 87. Kd3 {[%emt 0:00:03]} Rxf6 {[%emt 0:00:06]} 88. Rxf6+ {[%emt 0:00:03]} Kxf6 {[%emt 0:00:03]} 1/2-1/2

[Event "Mitropa Cup Women 2019"]
[Site "Radenci"]
[Date "2019.05.30"]
[Round "4.10"]
[White "Cvitan, Ena"]
[Black "Varga, Klara"]
[Result "1/2-1/2"]
[ECO "E48"]
[WhiteElo "2132"]
[BlackElo "2146"]
[Annotator "ChessBase"]
[PlyCount "176"]
[EventDate "2019.05.27"]
[EventType "team-tourn"]
[EventCountry "SLO"]
[SourceTitle "playchess.com"]
[Source "ChessBase"]
[SourceQuality "1"]
[WhiteTeam "Croatia"]
[BlackTeam "Hungary"]
[WhiteTeamCountry "CRO"]
[BlackTeamCountry "HUN"]
[TimeControl "40/5400+30:1800+30"]

1. d4 {[%emt 0:00:00]} Nf6 {[%emt 0:00:00]} 2. c4 {[%emt 0:00:03]} e6 {[%emt 0:00:00]} 3. Nc3 {[%emt 0:00:03]} Bb4 {[%emt 0:00:00]} 4. e3 {[%emt 0:00:05]} O-O {[%emt 0:00:00]} 5. Bd3 {[%emt 0:00:10]} c5 {[%emt 0:00:01]} 6. Nge2 {[%emt 0:02:13]} d5 {[%emt 0:00:19]} 7. cxd5 {[%emt 0:01:18]} cxd4 {[%emt 0:00:24]} 8. exd4 {[%emt 0:04:55]} Nxd5 {[%emt 0:00:10]} 9. O-O {[%emt 0:02:24]} Nc6 {[%emt 0:00:09]} 10. Bc2 {[%emt 0:08:35]} Re8 {[%emt 0:08:36]} 11. Be3 {[%emt 0:08:50]} Bd6 {[%emt 0:18:45]} 12. Nxd5 {[%emt 0:07:19]} exd5 {[%emt 0:01:17]} 13. Nf4 {[%emt 0:01:37]} Bxf4 {[%emt 0:09:09]} 14. Bxf4 {[%emt 0:00:15]} Qf6 {[%emt 0:00:11]} 15. Be3 {[%emt 0:03:04]} Bf5 {[%emt 0:00:13]} 16. Bb3 {[%emt 0:03:24]} Rad8 {[%emt 0:09:02]} 17. Qd2 {[%emt 0:09:27]} Qg6 {[%emt 0:00:23]} 18. Kh1 {[%emt 0:01:40]} b6 {[%emt 0:03:00]} 19. Ba4 {[%emt 0:08:41]} Re6 {[%emt 0:00:33]} 20. Bxc6 {[%emt 0:05:49]} Rxc6 {[%emt 0:00:03]} 21. Rac1 {[%emt 0:00:13]} Re6 {[%emt 0:07:41]} 22. Bf4 {[%emt 0:04:25]} h5 {[%emt 0:01:23]} 23. Rfe1 {[%emt 0:02:17]} Rde8 {[%emt 0:01:50]} 24. h3 {[%emt 0:04:24]} Qf6 {[%emt 0:03:36]} 25. Re5 {[%emt 0:02:15]} Rxe5 {[%emt 0:05:30]} 26. dxe5 {[%emt 0:00:58]} Qd8 {[%emt 0:02:17]} 27. Qd4 {[%emt 0:01:18]} Qd7 {[%emt 0:00:52]} 28. Rc3 {[%emt 0:03:01]} Rc8 {[%emt 0:01:35]} 29. Rxc8+ {[%emt 0:04:03]} Qxc8 {[%emt 0:00:03]} 30. Qc3 {[%emt 0:05:13]} Qa6 {[%emt 0:01:39]} 31. Qg3 {[%emt 0:02:33]} Qxa2 {[%emt 0:01:01]} 32. e6 {[%emt 0:01:04]} Bxe6 {[%emt 0:00:36]} 33. Be5 {[%emt 0:01:57]} Qb1+ {[%emt 0:00:08]} 34. Kh2 {[%emt 0:00:05]} Qh7 {[%emt 0:02:56]} 35. Bd4 {[%emt 0:00:44]} Qh6 {[%emt 0:01:00]} 36. Qb8+ {[%emt 0:01:31]} Kh7 {[%emt 0:00:09]} 37. Qe5 {[%emt 0:00:06]} f6 {[%emt 0:00:44]} 38. Qc7 {[%emt 0:01:57]} Qg5 {[%emt 0:01:07]} 39. Qg3 {[%emt 0:00:55]} Qf5 {[%emt 0:01:56]} 40. Qe3 {[%emt 0:00:00]} h4 {[%emt 0:00:00]} 41. f3 {[%emt 0:04:32]} Kg6 {[%emt 0:07:34]} 42. Kg1 {[%emt 0:00:38]} Bd7 {[%emt 0:00:44]} 43. Qe1 {[%emt 0:04:22]} Qf4 {[%emt 0:00:59]} 44. Qe3 {[%emt 0:00:14]} Qc7 {[%emt 0:04:37]} 45. Qe1 {[%emt 0:00:43]} Qf4 {[%emt 0:01:57]} 46. Qe3 {[%emt 0:00:18]} Qg3 {[%emt 0:00:56]} 47. Qf2 {[%emt 0:00:28]} Bb5 {[%emt 0:02:45]} 48. Qc2+ {[%emt 0:00:58]} Kf7 {[%emt 0:00:16]} 49. Bf2 {[%emt 0:00:52]} Qf4 {[%emt 0:00:34]} 50. Qd1 {[%emt 0:00:41]} Ke6 {[%emt 0:05:03]} 51. Qd4 {[%emt 0:02:42]} Qc1+ {[%emt 0:01:44]} 52. Kh2 {[%emt 0:00:01]} g5 {[%emt 0:01:48]} 53. Qg4+ {[%emt 0:01:08]} f5 {[%emt 0:09:44]} 54. Qd4 {[%emt 0:01:11]} Qc7+ {[%emt 0:00:11]} 55. Kg1 {[%emt 0:01:13]} Qe5 {[%emt 0:00:06]} 56. Qb4 {[%emt 0:00:21]} Bd7 {[%emt 0:04:00]} 57. Bd4 {[%emt 0:01:08]} Qe2 {[%emt 0:01:34]} 58. Kh2 {[%emt 0:01:19]} g4 {[%emt 0:01:08]} 59. fxg4 {[%emt 0:01:57]} fxg4 {[%emt 0:00:05]} 60. hxg4 {[%emt 0:00:27]} Qxg4 {[%emt 0:00:03]} 61. Qe1+ {[%emt 0:01:17]} Kd6 {[%emt 0:03:07]} 62. Qe5+ {[%emt 0:02:21]} Kc6 {[%emt 0:00:02]} 63. Qe3 {[%emt 0:01:22]} Kb7 {[%emt 0:01:23]} 64. Qe5 {[%emt 0:02:11]} Kc6 {[%emt 0:04:15]} 65. Qe3 {[%emt 0:01:05]} Be6 {[%emt 0:02:19]} 66. Qc3+ {[%emt 0:01:19]} Kb7 {[%emt 0:00:16]} 67. Qe3 {[%emt 0:00:06]} Bf5 {[%emt 0:02:29]} 68. Qe7+ {[%emt 0:02:00]} Bd7 {[%emt 0:00:45]} 69. Qe5 {[%emt 0:02:41]} Qe6 {[%emt 0:00:49]} 70. Qxe6 {[%emt 0:00:37]} Bxe6 {[%emt 0:00:01]} 71. Kg1 {[%emt 0:00:29]} Kc6 {[%emt 0:01:13]} 72. Kf2 {[%emt 0:00:01]} Kb5 {[%emt 0:00:15]} 73. Ke3 {[%emt 0:02:04]} Kc4 {[%emt 0:00:08]} 74. Bf6 {[%emt 0:00:55]} Kb3 {[%emt 0:03:15]} 75. Kd2 {[%emt 0:01:26]} Bf5 {[%emt 0:00:11]} 76. Kc1 {[%emt 0:00:53]} Be4 {[%emt 0:00:29]} 77. Bxh4 {[%emt 0:00:45]} Bxg2 {[%emt 0:00:22]} 78. Bf2 {[%emt 0:00:23]} Kc4 {[%emt 0:00:20]} 79. Kd2 {[%emt 0:01:30]} Be4 {[%emt 0:00:24]} 80. Bg1 {[%emt 0:00:49]} d4 {[%emt 0:00:27]} 81. b3+ {[%emt 0:00:53]} Kd5 {[%emt 0:00:19]} 82. Bh2 {[%emt 0:00:31]} a5 {[%emt 0:00:17]} 83. Bc7 {[%emt 0:00:45]} Kc5 {[%emt 0:00:03]} 84. Be5 {[%emt 0:00:03]} b5 {[%emt 0:00:10]} 85. Bf6 {[%emt 0:01:00]} a4 {[%emt 0:01:42]} 86. bxa4 {[%emt 0:00:04]} bxa4 {[%emt 0:00:04]} 87. Kc1 {[%emt 0:00:22]} Kc4 {[%emt 0:00:52]} 88. Bxd4 {[%emt 0:00:08]} Kxd4 {[%emt 0:00:08]} 1/2-1/2

[Event "Mitropa Cup Women 2019"]
[Site "Radenci"]
[Date "2019.05.30"]
[Round "4.11"]
[White "Gaal, Zsoka"]
[Black "Blazeka, Mihaela"]
[Result "0-1"]
[ECO "A46"]
[WhiteElo "2044"]
[BlackElo "2118"]
[Annotator "ChessBase"]
[PlyCount "86"]
[EventDate "2019.05.27"]
[EventType "team-tourn"]
[EventCountry "SLO"]
[SourceTitle "playchess.com"]
[Source "ChessBase"]
[SourceQuality "1"]
[WhiteTeam "Hungary"]
[BlackTeam "Croatia"]
[WhiteTeamCountry "HUN"]
[BlackTeamCountry "CRO"]
[TimeControl "40/5400+30:1800+30"]

1. Nf3 {[%emt 0:00:00]} Nf6 {[%emt 0:00:30]} 2. g3 {[%emt 0:00:00]} e6 {[%emt 0:00:11]} 3. Bg2 {[%emt 0:00:00]} d5 {[%emt 0:00:14]} 4. O-O {[%emt 0:00:09]} Be7 {[%emt 0:00:27]} 5. d4 {[%emt 0:00:17]} b5 {[%emt 0:00:29]} 6. a4 {[%emt 0:01:08]} b4 {[%emt 0:00:08]} 7. c4 {[%emt 0:03:18]} bxc3 {[%emt 0:01:11]} 8. Nxc3 {[%emt 0:01:16]} Nbd7 {[%emt 0:03:53]} 9. Rb1 {[%emt 0:05:24]} a5 {[%emt 0:01:26]} 10. Bf4 {[%emt 0:04:33]} c6 {[%emt 0:01:12]} 11. Qc2 {[%emt 0:02:51]} Ba6 {[%emt 0:01:16]} 12. Ne5 {[%emt 0:09:53]} Qb6 {[%emt 0:03:04]} 13. Rfd1 {[%emt 0:04:15]} O-O {[%emt 0:01:43]} 14. Rbc1 {[%emt 0:08:08]} Nxe5 {[%emt 0:03:58]} 15. Bxe5 {[%emt 0:04:45]} Nd7 {[%emt 0:02:17]} 16. Bf4 {[%emt 0:00:50]} f5 {[%emt 0:06:45]} 17. Qd2 {[%emt 0:02:14]} h6 {[%emt 0:04:17]} 18. Bxh6 {[%emt 0:14:02]} gxh6 {[%emt 0:00:19]} 19. Qxh6 {[%emt 0:00:03]} Rf6 {[%emt 0:02:36]} 20. Qg5+ {[%emt 0:00:49]} Kf7 {[%emt 0:02:07]} 21. Qh5+ {[%emt 0:03:18]} Rg6 {[%emt 0:00:16]} 22. Qh7+ {[%emt 0:02:26]} Rg7 {[%emt 0:00:08]} 23. Qh5+ {[%emt 0:05:43]} Kg8 {[%emt 0:00:52]} 24. Qh6 {[%emt 0:06:14]} Nf6 {[%emt 0:04:03]} 25. Rc2 {[%emt 0:05:44]} Bc4 {[%emt 0:01:19]} 26. b3 {[%emt 0:06:23]} Qxb3 {[%emt 0:06:38]} 27. Qd2 {[%emt 0:01:16]} Bb4 {[%emt 0:01:47]} 28. Rb1 {[%emt 0:01:11]} Bxc3 {[%emt 0:00:13]} 29. Qc1 {[%emt 0:00:07]} Qxa4 {[%emt 0:01:42]} 30. Rxc3 {[%emt 0:00:32]} Bb5 {[%emt 0:16:44]} 31. Qe3 {[%emt 0:01:30]} Re8 {[%emt 0:03:15]} 32. Rcc1 {[%emt 0:03:06]} Ng4 {[%emt 0:00:55]} 33. Qd2 {[%emt 0:00:59]} Qa3 {[%emt 0:01:22]} 34. Rc5 {[%emt 0:01:04]} Ree7 {[%emt 0:04:14]} 35. Qd1 {[%emt 0:01:46]} Rc7 {[%emt 0:02:58]} 36. Bf3 {[%emt 0:01:12]} Bc4 {[%emt 0:03:26]} 37. Qe1 {[%emt 0:01:02]} a4 {[%emt 0:01:46]} 38. Ra1 {[%emt 0:00:24]} Qb2 {[%emt 0:00:50]} 39. e3 {[%emt 0:00:50]} Nxf2 {[%emt 0:00:50]} 40. Rxa4 {[%emt 0:00:00]} Nh3+ {[%emt 0:00:00]} 41. Kh1 {[%emt 0:00:54]} Rh7 {[%emt 0:03:46]} 42. Rca5 {[%emt 0:08:46]} Nf2+ {[%emt 0:01:20]} 43. Kg1 {[%emt 0:00:12]} Ng4 {[%emt 0:01:52]} 0-1

[Event "Mitropa Cup Women 2019"]
[Site "Radenci"]
[Date "2019.05.30"]
[Round "4.12"]
[White "Spiranec, Noemi"]
[Black "Kovacs, Judit"]
[Result "1-0"]
[ECO "D23"]
[WhiteElo "2009"]
[BlackElo "2025"]
[Annotator "NA"]
[PlyCount "79"]
[EventDate "2019.05.27"]
[EventType "team-tourn"]
[EventCountry "SLO"]
[SourceTitle "playchess.com"]
[Source "ChessBase"]
[SourceQuality "1"]
[WhiteTeam "Croatia"]
[BlackTeam "Hungary"]
[WhiteTeamCountry "CRO"]
[BlackTeamCountry "HUN"]
[TimeControl "40/5400+30:1800+30"]

1. d4 {[%emt 0:00:00]} d5 {[%emt 0:00:00]} 2. c4 {[%emt 0:00:00]} c6 {[%emt 0:00:00]} 3. Nf3 {[%emt 0:00:00]} Nf6 {[%emt 0:00:00]} 4. Qc2 {[%emt 0:00:00]} dxc4 {[%emt 0:00:00]} 5. Qxc4 {[%emt 0:00:05]} Bg4 {[%emt 0:00:15]} 6. Nbd2 {[%emt 0:02:38]} e6 {[%emt 0:00:12]} 7. g3 {[%emt 0:01:37]} Nbd7 {[%emt 0:00:23]} 8. Bg2 {[%emt 0:01:53]} Be7 {[%emt 0:00:12]} 9. O-O {[%emt 0:00:08]} O-O {[%emt 0:00:08]} 10. e3 {[%emt 0:09:54]} Rc8 {[%emt 0:01:50]} 11. b4 {[%emt 0:01:28]} b5 {[%emt 0:22:53]} 12. Qb3 {[%emt 0:00:35]} a5 {[%emt 0:03:11]} 13. a3 {[%emt 0:01:08]} Qb6 {[%emt 0:12:40]} 14. Bb2 {[%emt 0:06:52]} axb4 {[%emt 0:05:07]} 15. axb4 {[%emt 0:00:03]} Ra8 {[%emt 0:00:09]} 16. Rfc1 {[%emt 0:04:32]} Rfc8 {[%emt 0:16:39]} 17. Ne1 {[%emt 0:01:04]} Nd5 {[%emt 0:02:29]} 18. Nd3 {[%emt 0:00:34]} Be2 {[%emt 0:05:37]} 19. Nc5 {[%emt 0:00:31]} Nxc5 {[%emt 0:01:42]} 20. dxc5 {[%emt 0:00:08]} Qd8 {[%emt 0:00:04]} 21. Re1 {[%emt 0:06:02]} Bh5 {[%emt 0:01:56]} 22. Nf3 {[%emt 0:03:44]} Bxf3 {[%emt 0:01:34]} 23. Bxf3 {[%emt 0:01:06]} Bf6 {[%emt 0:03:17]} 24. Rxa8 {[%emt 0:01:26]} Rxa8 {[%emt 0:00:08]} 25. e4 {[%emt 0:00:16]} Ne7 {[%emt 0:06:08]} 26. Bxf6 {[%emt 0:00:13]} gxf6 {[%emt 0:00:07]} 27. Rd1 {[%emt 0:00:57]} Qc7 {[%emt 0:00:50]} 28. Qd3 {[%emt 0:08:41]} Ng6 {[%emt 0:03:52]} 29. Be2 {[%emt 0:03:52]} Ra4 {[%emt 0:05:15]} 30. Qd6 {[%emt 0:01:27]} Qc8 {[%emt 0:00:30]} 31. Bh5 {[%emt 0:06:58]} Qa8 {[%emt 0:03:21]} 32. Kg2 {[%emt 0:03:35]} Kg7 {[%emt 0:00:11]} 33. Bxg6 {[%emt 0:02:04]} hxg6 {[%emt 0:00:08]} 34. e5 {[%emt 0:03:21]} Rxb4 {[%emt 0:01:48]} 35. Qe7 {[%emt 0:00:27]} fxe5 {[%emt 0:00:19]} 36. Rd8 {[%emt 0:00:08]} Qa2 {[%emt 0:00:05]} 37. Qf8+ {[%emt 0:02:34]} Kf6 {[%emt 0:00:05]} 38. Rd7 {[%emt 0:00:46]} Qe2 {[%emt 0:01:49]} 39. Rxf7+ {[%emt 0:01:00]} Kg5 {[%emt 0:00:04]} 40. Qe7+ {[%emt 0:00:00]} 1-0

[Event "Mitropa Cup Women 2019"]
[Site "Radenci"]
[Date "2019.05.30"]
[Round "4.13"]
[White "Motycakova, Monika"]
[Black "Pychova, Nela"]
[Result "1/2-1/2"]
[ECO "C42"]
[WhiteElo "2150"]
[BlackElo "2174"]
[Annotator "ChessBase"]
[PlyCount "83"]
[EventDate "2019.05.27"]
[EventType "team-tourn"]
[EventCountry "SLO"]
[SourceTitle "playchess.com"]
[Source "ChessBase"]
[SourceQuality "1"]
[WhiteTeam "Slovakia"]
[BlackTeam "Czech Republic"]
[WhiteTeamCountry "SVK"]
[BlackTeamCountry "CZE"]
[TimeControl "40/5400+30:1800+30"]

1. e4 {[%emt 0:00:00]} e5 {[%emt 0:00:00]} 2. Nf3 {[%emt 0:00:00]} Nf6 {[%emt 0:00:00]} 3. Nxe5 {[%emt 0:00:00]} d6 {[%emt 0:00:02]} 4. Nf3 {[%emt 0:00:00]} Nxe4 {[%emt 0:00:07]} 5. d4 {[%emt 0:01:03]} d5 {[%emt 0:00:09]} 6. Bd3 {[%emt 0:00:06]} Bf5 {[%emt 0:00:38]} 7. O-O {[%emt 0:01:23]} Be7 {[%emt 0:00:45]} 8. Re1 {[%emt 0:02:48]} O-O {[%emt 0:02:26]} 9. c4 {[%emt 0:01:11]} Nc6 {[%emt 0:30:19]} 10. Nc3 {[%emt 0:10:10]} Nxc3 {[%emt 0:03:39]} 11. bxc3 {[%emt 0:00:05]} Bxd3 {[%emt 0:01:38]} 12. Qxd3 {[%emt 0:00:05]} dxc4 {[%emt 0:07:29]} 13. Qxc4 {[%emt 0:00:24]} Na5 {[%emt 0:05:46]} 14. Qb5 {[%emt 0:11:56]} c6 {[%emt 0:02:34]} 15. Qh5 {[%emt 0:05:51]} Nc4 {[%emt 0:03:22]} 16. a4 {[%emt 0:11:52]} Bf6 {[%emt 0:02:58]} 17. Bf4 {[%emt 0:05:45]} Nb6 {[%emt 0:05:33]} 18. Be5 {[%emt 0:04:36]} Nd5 {[%emt 0:04:14]} 19. c4 {[%emt 0:07:05]} Bxe5 {[%emt 0:08:21]} 20. Rxe5 {[%emt 0:14:09]} Nf6 {[%emt 0:01:18]} 21. Qh4 {[%emt 0:01:37]} Re8 {[%emt 0:01:07]} 22. Rae1 {[%emt 0:03:11]} Rxe5 {[%emt 0:02:25]} 23. dxe5 {[%emt 0:05:29]} Ne8 {[%emt 0:00:59]} 24. Qh5 {[%emt 0:03:26]} Qe7 {[%emt 0:04:56]} 25. h3 {[%emt 0:05:05]} Rd8 {[%emt 0:02:53]} 26. Re4 {[%emt 0:02:04]} g6 {[%emt 0:05:00]} 27. Qh6 {[%emt 0:01:27]} Qf8 {[%emt 0:00:16]} 28. Qh4 {[%emt 0:01:04]} Rd1+ {[%emt 0:00:58]} 29. Kh2 {[%emt 0:00:03]} Nc7 {[%emt 0:00:42]} 30. Qg4 {[%emt 0:01:45]} Ne6 {[%emt 0:01:22]} 31. Nd4 {[%emt 0:00:39]} Rxd4 {[%emt 0:00:35]} 32. Rxd4 {[%emt 0:00:03]} Nxd4 {[%emt 0:00:06]} 33. Qxd4 {[%emt 0:00:04]} Qe7 {[%emt 0:00:55]} 34. f4 {[%emt 0:01:16]} b6 {[%emt 0:00:59]} 35. Qe4 {[%emt 0:00:34]} Qe6 {[%emt 0:01:53]} 36. Qd4 {[%emt 0:00:36]} Qe7 {[%emt 0:00:39]} 37. Qe4 {[%emt 0:00:07]} Qd7 {[%emt 0:00:46]} 38. Kg3 {[%emt 0:00:56]} Kf8 {[%emt 0:00:31]} 39. Qe3 {[%emt 0:00:29]} c5 {[%emt 0:00:31]} 40. a5 {[%emt 0:00:00]} Ke7 {[%emt 0:00:00]} 41. axb6 {[%emt 0:11:28]} axb6 {[%emt 0:00:34]} 42. Qb3 {[%emt 0:02:42]} 1/2-1/2

[Event "Mitropa Cup Women 2019"]
[Site "Radenci"]
[Date "2019.05.30"]
[Round "4.14"]
[White "Nemcova, Karin"]
[Black "Ferkova, Dominika"]
[Result "1-0"]
[ECO "B17"]
[WhiteElo "1947"]
[BlackElo "2037"]
[Annotator "NA"]
[PlyCount "85"]
[EventDate "2019.05.27"]
[EventType "team-tourn"]
[EventCountry "SLO"]
[SourceTitle "playchess.com"]
[Source "ChessBase"]
[SourceQuality "1"]
[WhiteTeam "Czech Republic"]
[BlackTeam "Slovakia"]
[WhiteTeamCountry "CZE"]
[BlackTeamCountry "SVK"]
[TimeControl "40/5400+30:1800+30"]

1. e4 {[%emt 0:00:00]} c6 {[%emt 0:00:00]} 2. d4 {[%emt 0:00:00]} d5 {[%emt 0:00:00]} 3. Nc3 {[%emt 0:00:00]} dxe4 {[%emt 0:00:00]} 4. Nxe4 {[%emt 0:00:00]} Nd7 {[%emt 0:00:00]} 5. c3 {[%emt 0:00:05]} Ngf6 {[%emt 0:00:07]} 6. Nxf6+ {[%emt 0:00:06]} Nxf6 {[%emt 0:00:08]} 7. Bc4 {[%emt 0:00:08]} Bf5 {[%emt 0:00:21]} 8. Qb3 {[%emt 0:00:10]} e6 {[%emt 0:10:02]} 9. Qxb7 {[%emt 0:00:47]} Qc8 {[%emt 0:02:39]} 10. Ba6 {[%emt 0:01:21]} e5 {[%emt 0:11:33]} 11. dxe5 {[%emt 0:04:53]} Nd5 {[%emt 0:08:14]} 12. Nf3 {[%emt 0:03:05]} Bc5 {[%emt 0:03:43]} 13. Qxc8+ {[%emt 0:07:12]} Bxc8 {[%emt 0:00:13]} 14. Bxc8 {[%emt 0:00:24]} Rxc8 {[%emt 0:00:05]} 15. O-O {[%emt 0:00:48]} O-O {[%emt 0:00:48]} 16. Rd1 {[%emt 0:08:25]} Rfe8 {[%emt 0:06:53]} 17. c4 {[%emt 0:12:01]} Nb6 {[%emt 0:15:25]} 18. b3 {[%emt 0:01:11]} h6 {[%emt 0:09:35]} 19. Bb2 {[%emt 0:01:41]} Red8 {[%emt 0:10:54]} 20. Nd2 {[%emt 0:05:06]} Nd7 {[%emt 0:03:07]} 21. Ne4 {[%emt 0:00:23]} Bb6 {[%emt 0:00:16]} 22. Rd2 {[%emt 0:08:35]} Nf8 {[%emt 0:03:15]} 23. Rad1 {[%emt 0:02:41]} Rxd2 {[%emt 0:00:24]} 24. Rxd2 {[%emt 0:00:18]} Re8 {[%emt 0:02:19]} 25. Rd6 {[%emt 0:15:42]} Ng6 {[%emt 0:04:18]} 26. c5 {[%emt 0:01:03]} Bc7 {[%emt 0:01:54]} 27. Rxc6 {[%emt 0:02:17]} Bxe5 {[%emt 0:00:54]} 28. Bxe5 {[%emt 0:02:30]} Nxe5 {[%emt 0:00:07]} 29. Rd6 {[%emt 0:02:00]} f5 {[%emt 0:00:20]} 30. Nd2 {[%emt 0:02:46]} Nf7 {[%emt 0:00:44]} 31. Rd5 {[%emt 0:03:37]} Re1+ {[%emt 0:01:08]} 32. Nf1 {[%emt 0:00:01]} Ra1 {[%emt 0:04:52]} 33. Rd2 {[%emt 0:05:03]} Rc1 {[%emt 0:00:37]} 34. b4 {[%emt 0:00:12]} a5 {[%emt 0:01:13]} 35. a3 {[%emt 0:04:14]} Rc3 {[%emt 0:00:23]} 36. Rb2 {[%emt 0:00:26]} axb4 {[%emt 0:00:34]} 37. axb4 {[%emt 0:00:05]} Ne5 {[%emt 0:00:11]} 38. g3 {[%emt 0:05:10]} Nd3 {[%emt 0:00:24]} 39. Rb1 {[%emt 0:00:46]} Rc4 {[%emt 0:00:13]} 40. Ne3 {[%emt 0:00:00]} Re4 {[%emt 0:00:00]} 41. c6 {[%emt 0:01:16]} Re8 {[%emt 0:03:53]} 42. b5 {[%emt 0:00:55]} Rc8 {[%emt 0:00:06]} 43. b6 {[%emt 0:00:21]} 1-0